fUST/lending_fUST_20250723
["ID","MTS","AMOUNT","RATE_DAILY","PERIOD"]
[374162363,1753234243049,-460.0,0.00020078,2]
[374162364,1753234243058,-507.43,0.00020078,2]
[374162365,1753234243068,-777.11,0.00020078,2]
[374162366,1753234243077,-360.0,0.0002009,2]
[374162367,1753234243088,-1426.88660732,0.00020107,2]
[374162368,1753234243098,-575.640214,0.00020187,2]
[374162369,1753234243108,-1242.96924506,0.00020252,2]
[374162370,1753234243118,-500.0,0.00020338,2]
[374162371,1753234243129,-460.0,0.00020346,2]
[374162372,1753234243138,-469.56,0.00020346,2]
[374162373,1753234243148,-460.0,0.00020346,2]
[374162374,1753234243158,-460.0,0.00020346,2]
[374162375,1753234243168,-460.0,0.00020347,2]
[374162376,1753234243178,-460.0,0.00020347,2]
[374162377,1753234243189,-1596.47,0.00020349,2]
[374162378,1753234243198,-566.27,0.00020349,2]
[374162379,1753234243209,-413.58,0.00020349,2]
[374162380,1753234243219,-385.45,0.00020349,2]
[374162381,1753234243230,-735.7,0.00020349,2]
[374162382,1753234243239,-602.48,0.0002035,2]
[374162383,1753234243250,-722.73,0.00020352,2]
[374162384,1753234243259,-633.96,0.00020352,2]
[374162385,1753234243269,-460.0,0.00020352,2]
[374162386,1753234243278,-507.43,0.00020352,2]
[374162387,1753234243288,-777.11,0.00020352,2]
[374162388,1753234243297,-1426.88660732,0.00020383,3]
[374162389,1753234243307,-9297.13174675,0.000205,2]
[374162390,1753234243317,-657.671,0.00020608,2]
[374162391,1753234243327,-460.0,0.0002062,2]
[374162392,1753234243337,-469.56,0.0002062,2]
[374162393,1753234243346,-460.0,0.0002062,2]
[374162394,1753234243357,-460.0,0.0002062,2]
[374162395,1753234243371,-460.0,0.00020621,2]
[374162396,1753234243381,-162.57821254,0.00020621,2]
[374162397,1753234243391,-1596.47,0.00020623,2]
[374162398,1753234243401,-566.27,0.00020623,2]
[374162399,1753234243414,-735.7,0.00020623,2]
[374162400,1753234243433,-722.73,0.00020626,2]
[374162401,1753234243455,-633.96,0.00020626,2]
[374162402,1753234243476,-460.0,0.00020626,2]
[374162403,1753234243498,-507.43,0.00020626,2]
[374162404,1753234243521,-777.11,0.00020626,2]
[374162405,1753234243544,-460.0,0.00020638,2]
[374162406,1753234243567,-1426.88660732,0.00020659,3]
[374162407,1753234243589,-460.0,0.00020894,2]
[374162408,1753234243613,-469.56,0.00020894,2]
[374162409,1753234243635,-460.0,0.00020894,2]
[374162410,1753234243659,-539.58,0.00020894,2]
[374162411,1753234243682,-460.0,0.00020895,2]
[374162412,1753234243705,-1596.47,0.00020897,2]
[374162413,1753234243722,-566.27,0.00020897,2]
[374162414,1753234243732,-735.7,0.00020897,2]
[374162415,1753234243741,-722.73,0.000209,2]
[374162416,1753234243751,-633.96,0.000209,2]
[374162417,1753234243760,-460.0,0.000209,2]
[374162418,1753234243770,-507.43,0.000209,2]
[374162419,1753234243780,-777.11,0.000209,2]
[374162420,1753234243790,-1426.88660732,0.00020934,4]
[374162421,1753234243800,-460.0,0.00021168,2]
[374162422,1753234243810,-469.56,0.00021168,2]
[374162423,1753234243820,-460.0,0.00021168,2]
[374162424,1753234243830,-460.0,0.00021169,2]
[374162425,1753234243840,-1596.47,0.00021171,2]
[374162427,1753234243849,-566.27,0.00021171,2]
[374162428,1753234243859,-735.7,0.00021171,2]
[374162429,1753234243868,-722.73,0.00021174,2]
[374162430,1753234243878,-633.96,0.00021174,2]
[374162431,1753234243888,-460.0,0.00021174,2]
[374162432,1753234243897,-507.43,0.00021174,2]
[374162433,1753234243908,-777.11,0.00021174,2]
[374162434,1753234243917,-560.0,0.00021186,2]
[374162435,1753234243927,-1426.88660732,0.0002121,4]
[374162436,1753234243938,-1242.96924505,0.00021439,2]
[374162437,1753234243949,-242.51,0.00021442,2]
[374162438,1753234243959,-469.56,0.00021442,2]
[374162439,1753234243969,-460.0,0.00021442,2]
[374162440,1753234243980,-460.0,0.00021443,2]
[374162441,1753234243990,-1596.47,0.00021445,2]
[374162442,1753234244000,-566.27,0.00021445,2]
[374162443,1753234244011,-735.7,0.00021445,2]
[374162444,1753234244021,-722.73,0.00021448,2]
[374162445,1753234244031,-633.96,0.00021448,2]
[374162446,1753234244042,-460.0,0.00021448,2]
[374162447,1753234244051,-507.43,0.00021448,2]
[374162448,1753234244062,-777.11,0.00021448,2]
[374162449,1753234244071,-1426.88660732,0.00021486,5]
[374162450,1753234244081,-469.56,0.00021716,2]
[374162451,1753234244092,-460.0,0.00021716,2]
[374162452,1753234244102,-460.0,0.00021717,2]
[374162453,1753234244111,-1596.47,0.00021719,2]
[374162454,1753234244120,-566.27,0.00021719,2]
[374162455,1753234244130,-735.7,0.00021719,2]
[374162456,1753234244140,-722.73,0.00021722,2]
[374162457,1753234244151,-633.96,0.00021722,2]
[374162458,1753234244160,-460.0,0.00021722,2]
[374162459,1753234244169,-507.43,0.00021722,2]
[374162460,1753234244179,-777.11,0.00021722,2]
[374162461,1753234244188,-660.0,0.00021734,2]
[374162462,1753234244198,-180.0342065,0.00021746,2]
[374162463,1753234244207,-1426.88660732,0.00021762,5]
[374162464,1753234244217,-500.0,0.00021821,2]
[374162465,1753234244226,-280.18916198,0.00021885,2]
[374162466,1753234244235,-274.06147548,0.00021885,2]
[374162467,1753234244245,-200.36388747,0.00021918,2]
[374162468,1753234244255,-469.56,0.0002199,2]
[374162469,1753234244265,-460.0,0.0002199,2]
[374162470,1753234244275,-92133.56902378,0.0002199,2]
[374162471,1753234244284,-248.72992272,0.00021991,2]
[374162472,1753234244294,-1596.47,0.00021993,2]
[374162473,1753234244305,-566.27,0.00021993,2]
[374162474,1753234244314,-735.7,0.00021993,2]
[374162475,1753234244324,-722.73,0.00021996,2]
[374162476,1753234244333,-633.96,0.00021996,2]
[374162477,1753234244343,-460.0,0.00021996,2]
[374162478,1753234244353,-507.43,0.00021996,2]
[374162479,1753234244367,-777.11,0.00021996,2]
[374162480,1753234244377,-216.67,0.00022,7]
[374162481,1753234244386,-4472.12,0.00022,7]
[374162482,1753234244395,-589.03,0.00022,7]
[374162483,1753234244405,-1426.88660732,0.00022038,6]
[374162484,1753234244414,-151.0,0.00022055,2]
[374162485,1753234244423,-151.0,0.00022055,2]
[374162486,1753234244433,-215.0738,0.00022055,2]
[374162487,1753234244443,-151.0,0.00022055,2]
[374162488,1753234244453,-151.0,0.00022055,2]
[374162489,1753234244463,-151.0,0.00022055,2]
[374162490,1753234244472,-151.0,0.00022055,2]
[374162491,1753234244481,-151.0,0.00022055,2]
[374162492,1753234244491,-151.0,0.00022055,2]
[374162493,1753234244500,-151.0,0.00022055,2]
[374162494,1753234244509,-151.0,0.00022055,2]
[374162495,1753234244519,-151.0,0.00022055,2]
[374162496,1753234244528,-151.0,0.00022055,2]
[374162497,1753234244538,-151.0,0.00022055,2]
[374162498,1753234244547,-151.0,0.00022055,2]
[374162499,1753234244556,-151.0,0.00022055,2]
[374162500,1753234244566,-151.0,0.00022055,2]
[374162501,1753234244575,-151.0,0.00022055,2]
[374162502,1753234244584,-151.0,0.00022055,2]
[374162503,1753234244594,-151.0,0.00022055,2]
[374162504,1753234244605,-151.0,0.00022055,2]
[374162505,1753234244614,-151.0,0.00022055,2]
[374162506,1753234244624,-151.0,0.00022055,2]
[374162507,1753234244633,-151.0,0.00022055,2]
[374162508,1753234244642,-151.0,0.00022055,2]
[374162509,1753234244652,-151.0,0.00022055,2]
[374162510,1753234244661,-151.0,0.00022055,2]
[374162511,1753234244670,-3801.642,0.00022055,2]
[374162512,1753234244679,-151.0,0.00022055,2]
[374162513,1753234244689,-151.0,0.00022055,2]
[374162514,1753234244698,-151.0,0.00022055,2]
[374162515,1753234244708,-151.0,0.00022055,2]
[374162516,1753234244717,-151.0,0.00022055,2]
[374162517,1753234244726,-151.0,0.00022055,2]
[374162518,1753234244736,-151.0,0.00022055,2]
[374162519,1753234244745,-1007.80706655,0.000221,2]
[374162520,1753234244755,-3201.37872639,0.0002211,2]
[374162521,1753234244765,-1204.97,0.000222,2]
[374162522,1753234244774,-11559.74,0.000222,2]
[374162523,1753234244783,-469.56,0.00022264,2]
[374162524,1753234244792,-243.67,0.00022264,2]
[374162525,1753234244802,-1596.47,0.00022267,2]
[374162526,1753234244811,-566.27,0.00022267,2]
[374162527,1753234244821,-735.7,0.00022267,2]
[374162528,1753234244942,-722.73,0.0002227,2]
[374162529,1753234244952,-633.96,0.0002227,2]
[374162530,1753234244961,-460.0,0.0002227,2]
[374162531,1753234244970,-507.43,0.0002227,2]
[374162532,1753234244980,-777.11,0.0002227,2]
[374162533,1753234244990,-246.81538868,0.00022282,2]
[374162534,1753234245001,-1426.88660732,0.00022314,7]
[374162535,1753234245010,-1000.0,0.00022369,2]
[374162536,1753234245023,-500.0,0.00022389,2]
[374162537,1753234245033,-501.17804774,0.00022389,2]
[374162538,1753234245043,-500.0,0.00022389,2]
[374162539,1753234245052,-500.0,0.00022389,2]
[374162540,1753234245061,-507.62343699,0.00022389,2]
[374162541,1753234245070,-501.56759705,0.00022389,2]
[374162542,1753234245091,-543.02,0.00022389,2]
[374162543,1753234245105,-4034.8674434,0.00022441,2]
[374162544,1753234245114,-1494.91,0.00022465,2]
[374162545,1753234245124,-543.03,0.00022489,4]
[374162546,1753234245134,-469.56,0.00022538,2]
[374162547,1753234245145,-1596.47,0.00022541,2]
[374162548,1753234245155,-566.27,0.00022541,2]
[374162549,1753234245168,-735.7,0.00022541,2]
[374162550,1753234245178,-722.73,0.00022544,2]
[374162551,1753234245188,-633.96,0.00022544,2]
[374162552,1753234245197,-345.51,0.00022544,2]
[374162553,1753234245207,-507.43,0.00022544,2]
[374162554,1753234245217,-777.11,0.00022544,2]
[374162555,1753234245226,-1426.88660732,0.0002259,7]
[374162556,1753234245236,-1242.96924505,0.00022626,2]
[374162557,1753234245245,-469.56,0.00022812,2]
[374162558,1753234245254,-1596.47,0.00022815,2]
[374162559,1753234245263,-566.27,0.00022815,2]
[374162560,1753234245272,-735.7,0.00022815,2]
[374162561,1753234245281,-722.73,0.00022818,2]
[374162562,1753234245291,-633.96,0.00022818,2]
[374162563,1753234245301,-507.43,0.00022818,2]
[374162564,1753234245310,-777.11,0.00022818,2]
[374162565,1753234245319,-154.632875,0.00022838,2]
[374162566,1753234245330,-1426.88660732,0.00022866,8]
[374162567,1753234245339,-728.05112829,0.00022917,2]
[374162568,1753234245350,-1000.0,0.00022937,2]
[374162569,1753234245362,-469.59,0.00023086,2]
[374162570,1753234245372,-1596.47,0.00023089,2]
[374162571,1753234245381,-566.32,0.00023089,2]
[374162572,1753234245391,-735.78773873,0.00023089,2]
[374162573,1753234245400,-722.73,0.00023092,2]
[374162574,1753234245410,-633.96,0.00023092,2]
[374162575,1753234245419,-507.43,0.00023092,2]
[374162576,1753234245428,-777.11,0.00023092,2]
[374162577,1753234245438,-500.0,0.00023099,2]
[374162578,1753234245448,-852.83200626,0.00023099,2]
[374162579,1753234245458,-592.61995667,0.00023099,2]
[374162580,1753234245467,-852.83200626,0.00023099,2]
[374162581,1753234245477,-852.83200626,0.00023099,2]
[374162582,1753234245486,-852.83200626,0.00023099,2]
[374162583,1753234245496,-852.83200626,0.00023099,2]
[374162584,1753234245505,-852.83200626,0.00023099,2]
[374162585,1753234245516,-852.83200626,0.00023099,2]
[374162586,1753234245526,-852.83200626,0.00023099,2]
[374162587,1753234245536,-852.83200626,0.00023099,2]
[374162588,1753234245545,-852.83200626,0.00023099,2]
[374162589,1753234245554,-852.83200626,0.00023099,2]
[374162590,1753234245563,-852.83200626,0.00023099,2]
[374162591,1753234245573,-852.83200626,0.00023099,2]
[374162592,1753234245582,-852.83200626,0.00023099,2]
[374162593,1753234245591,-852.83200626,0.00023099,2]
[374162594,1753234245602,-852.83200626,0.00023099,2]
[374162595,1753234245612,-852.83200626,0.00023099,2]
[374162596,1753234245622,-852.83200626,0.00023099,2]
[374162597,1753234245632,-852.83200626,0.00023099,2]
[374162598,1753234245641,-1426.88660732,0.00023141,8]
[374162599,1753234245650,-722.73,0.00023366,2]
[374162600,1753234245660,-633.96,0.00023366,2]
[374162601,1753234245671,-507.43,0.00023366,2]
[374162602,1753234245680,-777.11,0.00023366,2]
[374162603,1753234245690,-4472.12,0.000234,7]
[374162605,1753234245699,-589.03,0.000234,7]
[374162607,1753234245709,-1426.88660732,0.00023417,9]
[374162609,1753234245719,-223.0315306,0.00023424,2]
[374162611,1753234245729,-429.6101251,0.00023473,2]
[374162612,1753234245738,-429.6101251,0.00023473,2]
[374162613,1753234245749,-429.6101251,0.00023473,2]
[374162614,1753234245759,-429.6101251,0.00023473,2]
[374162615,1753234245768,-429.6101251,0.00023473,2]
[374162616,1753234245778,-500.0,0.00023485,2]
[374162617,1753234245787,-151.0,0.000236,7]
[374162618,1753234245797,-722.73,0.0002364,2]
[374162619,1753234245808,-633.96,0.0002364,2]
[374162620,1753234245819,-507.43,0.0002364,2]
[374162621,1753234245830,-777.11,0.0002364,2]
[374162622,1753234245841,-1426.88660732,0.00023693,9]
[374162623,1753234245851,-11559.74,0.000237,2]
[374162624,1753234245861,-4034.86744339,0.00023737,2]
[374162625,1753234245871,-1917.0,0.00023763,2]
[374162626,1753234245880,-216.67,0.000238,7]
[374162627,1753234245889,-1242.96924505,0.00023813,2]
[374162628,1753234245899,-1917.0,0.00023851,2]
[374162629,1753234245909,-168.0,0.00023871,2]
[374162630,1753234245919,-168.0,0.00023894,2]
[374162631,1753234245928,-151.0,0.000239,6]
[374162632,1753234245938,-710.88782186,0.000239,2]
[374162633,1753234245948,-722.94000001,0.00023913,2]
[374162634,1753234245957,-634.14,0.00023913,2]
[374162635,1753234245966,-507.58,0.00023913,2]
[374162636,1753234245976,-777.27705361,0.00023913,2]
[374162638,1753234245986,-1426.88660732,0.00023969,10]
[374162639,1753234245995,-154.632875,0.00024017,2]
[374162641,1753234246005,-1917.0,0.00024036,2]
[374162642,1753234246014,-1807.45,0.00024051,2]
[374162643,1753234246023,-500.0,0.00024064,2]
[374162644,1753234246032,-500.0,0.00024064,2]
[374162645,1753234246041,-168.0,0.00024083,2]
[374162646,1753234246050,-500.0,0.00024107,2]
[374162647,1753234246059,-168.0,0.0002417,2]
[374162648,1753234246068,-500.0,0.00024177,2]
[374162649,1753234246077,-500.0,0.00024231,2]
[374162650,1753234246087,-1426.88660732,0.00024245,10]
[374162651,1753234246096,-160.0,0.00024277,3]
[374162652,1753234246107,-2157.0,0.00024369,2]
[374162653,1753234246116,-968.0,0.00024369,2]
[374162655,1753234246125,-407.0,0.00024369,2]
[374162657,1753234246134,-151.0,0.000244,8]
[374162659,1753234246143,-1917.0,0.00024429,2]
[374162661,1753234246152,-429.6101251,0.00024432,2]
[374162662,1753234246161,-429.6101251,0.00024432,2]
[374162663,1753234246171,-429.6101251,0.00024432,2]
[374162664,1753234246180,-429.6101251,0.00024432,2]
[374162665,1753234246189,-429.6101251,0.00024432,2]
[374162666,1753234246199,-429.6101251,0.00024432,2]
[374162667,1753234246208,-429.6101251,0.00024432,2]
[374162668,1753234246217,-429.6101251,0.00024432,2]
[374162669,1753234246227,-429.6101251,0.00024432,2]
[374162671,1753234246235,-429.6101251,0.00024432,2]
[374162673,1753234246245,-429.6101251,0.00024432,2]
[374162674,1753234246254,-429.6101251,0.00024432,2]
[374162676,1753234246263,-168.0,0.00024439,2]
[374162677,1753234246273,-151.0,0.000245,7]
[374162678,1753234246284,-1426.88660732,0.00024521,11]
[374162679,1753234246293,-499.3,0.00024614,2]
[374162680,1753234246302,-1917.0,0.0002462,2]
[374162681,1753234246311,-168.328807,0.00024636,8]
[374162682,1753234246321,-1491.0,0.00024641,2]
[374162683,1753234246331,-154.632875,0.00024645,3]
[374162684,1753234246340,-500.0,0.00024737,2]
[374162685,1753234246350,-168.0,0.00024789,2]
[374162687,1753234246362,-231.28369723,0.00024793,2]
[374162688,1753234246372,-1426.88660732,0.00024797,11]
[374162689,1753234246382,-39615.25135466,0.000248,2]
[374162690,1753234246597,-1788.96099999,0.000248,2]
[374162691,1753234246614,-1609.42739068,0.000248,2]
[374162692,1753234246645,-9482.66380587,0.000248,2]
[374162693,1753234246662,-4974.98454512,0.000248,2]
[374162694,1753234246673,-36348.640351,0.000248,2]
[374162695,1753234405523,183.02173939,0.000222,69]
[374162699,1753234552201,498.86653348,0.00016685,2]
[374162700,1753234655432,5017.0,0.00026027,120]
[374162701,1753234680235,88762.0,0.00025123,30]
[374162702,1753234688658,873.3186251,0.00026019,120]
[374162703,1753234778739,24900.0,0.00016578,2]
[374162704,1753234808078,2000.0,0.00024,120]
[374162705,1753234856706,436.50821676,0.00016684,2]
[374162706,1753234908855,1334.66071711,0.00025127,30]
[374162707,1753234996208,518.076192,0.00013699,2]
[374162709,1753235146991,151.0,0.000166,2]
[374162710,1753235147340,151.0,0.000152,2]
[374162711,1753235186289,-275.86516894,0.00016781,2]
[374162712,1753235188122,-164.89876803,0.00016781,2]
[374162713,1753235189926,-113.23606303,0.00016781,2]
[374162714,1753235195860,-269.12649668,0.00016777,3]
[374162715,1753235199352,-32.78350332,0.00016777,3]
[374162716,1753235219065,-164.89,0.00016777,3]
[374162720,1753235405769,381.9446897,0.00016683,2]
[374162725,1753235409518,-191.50381121,0.00016781,2]
[374162726,1753235409715,999.0,0.00026027,120]
[374162727,1753235419173,-7.49618879,0.00016781,2]
[374162728,1753235419198,-204.78098543,0.00016781,2]
[374162729,1753235423508,-95.21901457,0.00016781,2]
[374162746,1753235432342,-298.0,0.00016782,2]
[374162748,1753235432351,-300.0,0.00016782,2]
[374162750,1753235432361,-460.31288875,0.00016782,2]
[374162754,1753235432395,-739.68711125,0.00016782,2]
[374162756,1753235432405,-472.56714247,0.00016783,2]
[374162758,1753235432414,-326.03136842,0.00016783,2]
[374162760,1753235432423,-461.39108024,0.00016783,2]
[374162762,1753235432432,-470.07565638,0.00016783,2]
[374162764,1753235432442,-110.96743273,0.00016783,2]
[374162784,1753235438422,-530.98563825,0.00016783,2]
[374162786,1753235438432,-463.03136024,0.00016783,2]
[374162788,1753235438442,-461.60454113,0.00016783,2]
[374162790,1753235438452,-461.45066792,0.00016783,2]
[374162792,1753235438462,-461.33768676,0.00016783,2]
[374162794,1753235438472,-471.43789259,0.00016783,2]
[374162796,1753235438481,-461.04020123,0.00016783,2]
[374162798,1753235438491,-462.69056021,0.00016783,2]
[374162800,1753235438500,-461.67261205,0.00016783,2]
[374162802,1753235438510,-460.75402895,0.00016783,2]
[374162804,1753235438520,-464.3242903,0.00016783,2]
[374162807,1753235438533,-461.52934225,0.00016783,2]
[374162809,1753235438542,-464.11438904,0.00016783,2]
[374162810,1753235438551,-464.26498677,0.00016783,2]
[374162813,1753235438562,-536.85745807,0.00016783,2]
[374162815,1753235438572,-461.77309523,0.00016783,2]
[374162817,1753235438581,-478.7606384,0.00016783,2]
[374162818,1753235438591,-464.12004885,0.00016783,2]
[374162821,1753235438600,-475.1902997,0.00016783,2]
[374162823,1753235438610,-462.44845087,0.00016783,2]
[374162825,1753235438619,-463.83789535,0.00016783,2]
[374162827,1753235438628,-465.3629966,0.00016783,2]
[374162829,1753235438637,-461.15935082,0.00016783,2]
[374162831,1753235438647,-584.00092348,0.00016783,2]
[374162833,1753235438656,-463.84021226,0.00016783,2]
[374162835,1753235438665,-461.98581099,0.00016783,2]
[374162837,1753235438674,-460.95418446,0.00016783,2]
[374162839,1753235438684,-460.0,0.00016783,2]
[374162841,1753235438694,-476.42865223,0.00016783,2]
[374162842,1753235438705,-522.36120259,0.00016783,2]
[374162845,1753235438715,-464.22124175,0.00016783,2]
[374162847,1753235438724,-500.0,0.00016783,2]
[374162849,1753235438733,-500.0,0.00016783,2]
[374162851,1753235438743,-500.0,0.00016783,2]
[374162853,1753235438752,-461.08045454,0.00016783,2]
[374162855,1753235438761,-465.44625626,0.00016783,2]
[374162856,1753235438770,-475.45462646,0.00016783,2]
[374162858,1753235438780,-464.48270474,0.00016783,2]
[374162861,1753235438790,-461.65252289,0.00016783,2]
[374162863,1753235438799,-464.42314652,0.00016783,2]
[374162865,1753235438808,-462.54446608,0.00016783,2]
[374162867,1753235438818,-461.52750295,0.00016783,2]
[374162869,1753235438827,-467.0729726,0.00016783,2]
[374162871,1753235438837,-472.1559573,0.00016783,2]
[374162873,1753235438847,-463.79660686,0.00016783,2]
[374162875,1753235438857,-461.91519541,0.00016783,2]
[374162877,1753235438867,-460.0,0.00016783,2]
[374162879,1753235438876,-483.1647059,0.00016783,2]
[374162881,1753235438886,-460.0,0.00016783,2]
[374162883,1753235438895,-460.0,0.00016783,2]
[374162884,1753235438907,-465.78350436,0.00016783,2]
[374162886,1753235438916,-461.49060296,0.00016783,2]
[374162888,1753235438926,-462.53825071,0.00016783,2]
[374162890,1753235438935,-466.71032484,0.00016783,2]
[374162893,1753235438948,-465.05027552,0.00016783,2]
[374162895,1753235438959,-461.79887066,0.00016783,2]
[374162897,1753235438968,-561.55,0.00016783,2]
[374162899,1753235438977,-463.11088189,0.00016783,2]
[374162901,1753235438987,-203.68856545,0.00016783,2]
[374162903,1753235438997,-463.70596451,0.00016783,2]
[374162905,1753235439006,-470.5076001,0.00016783,2]
[374162907,1753235439015,-466.56382881,0.00016783,2]
[374162909,1753235439024,-463.45972693,0.00016783,2]
[374162911,1753235439033,-464.2094663,0.00016783,2]
[374162913,1753235439042,-502.69754016,0.00016783,2]
[374162915,1753235439052,-465.15636319,0.00016783,2]
[374162917,1753235439062,-479.99311386,0.00016783,2]
[374162919,1753235439071,-158.39617738,0.00016783,2]
[374162921,1753235439081,-468.45140892,0.00016783,2]
[374162923,1753235439090,-384.36333227,0.00016783,2]
[374162925,1753235439099,-460.0,0.00016783,2]
[374162927,1753235439108,-466.49250145,0.00016783,2]
[374162929,1753235439118,-471.34468298,0.00016783,2]
[374162931,1753235439127,-461.41506385,0.00016783,2]
[374162933,1753235439136,-463.2542733,0.00016783,2]
[374162935,1753235439145,-469.56728766,0.00016783,2]
[374162937,1753235439155,-317.17001743,0.00016783,2]
[374162939,1753235439164,-474.72532177,0.00016783,2]
[374162941,1753235439174,-460.0,0.00016783,2]
[374162943,1753235439183,-460.83107954,0.00016783,2]
[374162945,1753235439192,-464.93299676,0.00016783,2]
[374162947,1753235439202,-462.71533843,0.00016783,2]
[374162949,1753235439213,-460.0,0.00016783,2]
[374162951,1753235439222,-477.97497254,0.00016783,2]
[374162953,1753235439231,-461.37499764,0.00016783,2]
[374162955,1753235439240,-461.93496346,0.00016783,2]
[374162957,1753235439250,-471.52933739,0.00016783,2]
[374162959,1753235439259,-465.04640503,0.00016783,2]
[374162961,1753235439268,-481.09068386,0.00016783,2]
[374162963,1753235439277,-463.72381552,0.00016783,2]
[374162965,1753235439286,-463.30249868,0.00016783,2]
[374162967,1753235439295,-398.55443871,0.00016783,2]
[374162969,1753235439305,-475.23167769,0.00016783,2]
[374162971,1753235439314,-474.23016487,0.00016783,2]
[374162973,1753235439323,-467.17609631,0.00016783,2]
[374162975,1753235439333,-462.69863949,0.00016783,2]
[374162977,1753235439341,-462.29501208,0.00016783,2]
[374162996,1753235439502,-460.0,0.00016783,2]
[374162998,1753235439514,-463.05494554,0.00016783,2]
[374163000,1753235439523,-461.95540081,0.00016783,2]
[374163002,1753235439533,-461.42144976,0.00016783,2]
[374163004,1753235439542,-460.0,0.00016783,2]
[374163006,1753235439551,-460.0,0.00016783,2]
[374163008,1753235439560,-460.0,0.00016783,2]
[374163010,1753235439570,-284.86845111,0.00016783,2]
[374163012,1753235439579,-469.85848316,0.00016783,2]
[374163014,1753235439589,-466.93479341,0.00016783,2]
[374163016,1753235439599,-465.01698162,0.00016783,2]
[374163018,1753235439608,-461.75986607,0.00016783,2]
[374163020,1753235439617,-470.04100312,0.00016783,2]
[374163022,1753235439626,-461.24274198,0.00016783,2]
[374163024,1753235439636,-476.67716512,0.00016783,2]
[374163026,1753235439645,-460.0,0.00016783,2]
[374163027,1753235439655,-469.53367309,0.00016783,2]
[374163029,1753235439664,-477.20734334,0.00016783,2]
[374163031,1753235439673,-462.05100324,0.00016783,2]
[374163033,1753235439683,-540.91069661,0.00016783,2]
[374163035,1753235439693,-462.75918127,0.00016783,2]
[374163037,1753235439703,-462.0672368,0.00016783,2]
[374163039,1753235439713,-460.69815152,0.00016783,2]
[374163041,1753235439723,-2281.77,0.00016783,2]
[374163043,1753235439732,-469.56093823,0.00016783,2]
[374163045,1753235439742,-473.13619904,0.00016783,2]
[374163047,1753235439751,-462.15454695,0.00016783,2]
[374163049,1753235439762,-462.42552946,0.00016783,2]
[374163052,1753235439771,-461.84250688,0.00016783,2]
[374163054,1753235439781,-467.46635884,0.00016783,2]
[374163056,1753235439791,-462.50594479,0.00016783,2]
[374163058,1753235439800,-357.80676087,0.00016783,2]
[374163060,1753235439810,-464.73153743,0.00016783,2]
[374163062,1753235439820,-475.37259747,0.00016783,2]
[374163064,1753235439829,-183.96367739,0.00016783,2]
[374163066,1753235439839,-462.62341935,0.00016783,2]
[374163068,1753235439848,-464.6379913,0.00016783,2]
[374163070,1753235439857,-465.46385511,0.00016783,2]
[374163072,1753235439866,-469.48873806,0.00016783,2]
[374163074,1753235439876,-460.0,0.00016783,2]
[374163075,1753235439885,-468.28503179,0.00016783,2]
[374163077,1753235439894,-460.94353647,0.00016783,2]
[374163079,1753235439906,-356.00249625,0.00016783,2]
[374163081,1753235439918,-50000.0,0.00016783,2]
[374163083,1753235439927,-461.01869725,0.00016784,2]
[374163085,1753235439936,-460.0,0.00016784,2]
[374163087,1753235439947,-462.43797791,0.00016784,2]
[374163089,1753235439956,-462.98968422,0.00016784,2]
[374163091,1753235439966,-460.0,0.00016784,2]
[374163093,1753235439975,-464.77657821,0.00016784,2]
[374163095,1753235439987,-462.41552247,0.00016784,2]
[374163097,1753235439998,-465.55409708,0.00016784,2]
[374163099,1753235440007,-466.01897849,0.00016784,2]